[Event "*** Titled Tuesday Blitz"]
[Site "Chess.com"]
[Date "2021.03.30"]
[Round "10"]
[White "FMalexhdez"]
[Black "Mili_Brizzi"]
[Result "0-1"]
[WhiteElo "2212"]
[BlackElo "2301"]
[TimeControl "180+1"]
[EndTime "11:57:56 PDT"]
[Termination "Mili_Brizzi won by resignation"]

1. e4 {[%clk 0:03:00.9]} 1... c6 {[%clk 0:02:59.3]} 2. d4 {[%clk 0:02:59.6]}
2... d5 {[%clk 0:03:00]} 3. exd5 {[%clk 0:03:00]} 3... cxd5 {[%clk 0:03:00.9]}
4. Bd3 {[%clk 0:03:00]} 4... Nc6 {[%clk 0:03:01.1]} 5. c3 {[%clk 0:03:00.1]}
5... Qc7 {[%clk 0:03:01.6]} 6. Ne2 {[%clk 0:02:59.8]} 6... g6 {[%clk 0:02:58.8]}
7. Bf4 {[%clk 0:02:59.4]} 7... Qd8 {[%clk 0:02:48.2]} 8. Nd2 {[%clk 0:02:57.2]}
8... Nf6 {[%clk 0:02:47.7]} 9. h3 {[%clk 0:02:54.4]} 9... Bf5 {[%clk 0:02:47.7]}
10. Nf3 {[%clk 0:02:53.4]} 10... Bxd3 {[%clk 0:02:47.2]} 11. Qxd3 {[%clk
0:02:53]} 11... Bg7 {[%clk 0:02:47.8]} 12. O-O {[%clk 0:02:52]} 12... O-O {[%clk
0:02:47.5]} 13. Ng3 {[%clk 0:02:43.6]} 13... Rc8 {[%clk 0:02:44.6]} 14. Rfe1
{[%clk 0:02:42.9]} 14... e6 {[%clk 0:02:41]} 15. Ne5 {[%clk 0:02:41.4]} 15...
Nxe5 {[%clk 0:02:39]} 16. Bxe5 {[%clk 0:02:41]} 16... Nd7 {[%clk 0:02:36.7]} 17.
Bxg7 {[%clk 0:02:39.1]} 17... Kxg7 {[%clk 0:02:36.7]} 18. a4 {[%clk 0:02:32.9]}
18... Nb6 {[%clk 0:02:27]} 19. b3 {[%clk 0:02:27.9]} 19... a5 {[%clk 0:02:25.9]}
20. Reb1 {[%clk 0:02:20.3]} 20... Qc7 {[%clk 0:02:23.8]} 21. Rc1 {[%clk
0:02:19.3]} 21... Rfd8 {[%clk 0:02:20.7]} 22. Rc2 {[%clk 0:02:05.1]} 22... Nd7
{[%clk 0:02:16.4]} 23. Rac1 {[%clk 0:01:54.4]} 23... Qb6 {[%clk 0:02:15.5]} 24.
Qb5 {[%clk 0:01:52.4]} 24... Rc6 {[%clk 0:01:58.8]} 25. Ne2 {[%clk 0:01:43.3]}
25... Rdc8 {[%clk 0:01:57.7]} 26. c4 {[%clk 0:01:40]} 26... Qc7 {[%clk
0:01:53.9]} 27. c5 {[%clk 0:01:26.6]} 27... e5 {[%clk 0:01:46.3]} 28. dxe5
{[%clk 0:01:23.3]} 28... Qxe5 {[%clk 0:01:38.8]} 29. Qxb7 {[%clk 0:00:57.4]}
29... Nxc5 {[%clk 0:01:29.3]} 30. Qb5 {[%clk 0:00:56.7]} 30... d4 {[%clk
0:01:17.1]} 31. Ng3 {[%clk 0:00:25.8]} 31... d3 {[%clk 0:01:16.8]} 32. Rd2
{[%clk 0:00:24.5]} 32... Qf4 {[%clk 0:01:08.8]} 33. Rcd1 {[%clk 0:00:23.1]}
33... h5 {[%clk 0:00:51.4]} 34. Nf1 {[%clk 0:00:22.8]} 34... Ne4 {[%clk
0:00:47]} 35. Rxd3 {[%clk 0:00:18.2]} 35... Qxf2+ {[%clk 0:00:41.4]} 36. Kh1
{[%clk 0:00:14.4]} 36... Rc1 {[%clk 0:00:37.3]} 37. Rd7 {[%clk 0:00:08.4]} 37...
Rxd1 {[%clk 0:00:32.2]} 38. Rxd1 {[%clk 0:00:07.2]} 38... Rc2 {[%clk 0:00:31.6]}
39. Qe5+ {[%clk 0:00:06.4]} 39... Nf6 {[%clk 0:00:31.5]} 40. Ne3 {[%clk
0:00:05]} 40... Re2 {[%clk 0:00:22.9]} 41. Rf1 {[%clk 0:00:05.2]} 41... Qxf1+
{[%clk 0:00:20.7]} 0-1

[Event "*** Titled Tuesday Blitz"]
[Site "Chess.com"]
[Date "2021.03.30"]
[Round "10"]
[White "Beca95"]
[Black "GMKrikor"]
[Result "1-0"]
[WhiteElo "2910"]
[BlackElo "2836"]
[TimeControl "180+1"]
[EndTime "11:57:59 PDT"]
[Termination "Beca95 won on time"]

1. d4 {[%clk 0:03:00.9]} 1... Nf6 {[%clk 0:02:59.8]} 2. c4 {[%clk 0:03:00.8]}
2... g6 {[%clk 0:02:59.9]} 3. Nc3 {[%clk 0:03:01.4]} 3... d5 {[%clk 0:02:59.6]}
4. Nf3 {[%clk 0:03:02]} 4... Bg7 {[%clk 0:02:59.3]} 5. Qb3 {[%clk 0:03:02.6]}
5... dxc4 {[%clk 0:02:57.1]} 6. Qxc4 {[%clk 0:03:03.5]} 6... O-O {[%clk
0:02:57.4]} 7. e4 {[%clk 0:03:03.5]} 7... Nc6 {[%clk 0:02:58]} 8. Be3 {[%clk
0:03:02.8]} 8... Ng4 {[%clk 0:02:53.5]} 9. e5 {[%clk 0:03:03]} 9... Nxe3 {[%clk
0:02:48.8]} 10. fxe3 {[%clk 0:03:03.9]} 10... e6 {[%clk 0:02:33.2]} 11. h4
{[%clk 0:03:01.7]} 11... h6 {[%clk 0:02:32.8]} 12. O-O-O {[%clk 0:02:53.3]}
12... a6 {[%clk 0:02:27.1]} 13. Bd3 {[%clk 0:02:50.1]} 13... Bd7 {[%clk
0:02:08.8]} 14. Bb1 {[%clk 0:02:48.6]} 14... b5 {[%clk 0:02:07]} 15. Qe2 {[%clk
0:02:48.6]} 15... Nb4 {[%clk 0:01:58.3]} 16. h5 {[%clk 0:02:42.7]} 16... g5
{[%clk 0:01:55.8]} 17. a3 {[%clk 0:02:42.9]} 17... Nd5 {[%clk 0:01:55.4]} 18.
Nxd5 {[%clk 0:02:37.4]} 18... exd5 {[%clk 0:01:55.4]} 19. Qc2 {[%clk 0:02:37.5]}
19... Re8 {[%clk 0:01:53.9]} 20. Rhf1 {[%clk 0:02:35.3]} 20... Be6 {[%clk
0:01:43.5]} 21. Ne1 {[%clk 0:01:51.1]} 21... c5 {[%clk 0:01:24.7]} 22. Qh7+
{[%clk 0:01:49.6]} 22... Kf8 {[%clk 0:01:24.2]} 23. Nd3 {[%clk 0:01:49.9]} 23...
cxd4 {[%clk 0:01:12.6]} 24. exd4 {[%clk 0:01:50.8]} 24... Rc8+ {[%clk
0:01:12.8]} 25. Bc2 {[%clk 0:01:50.7]} 25... Qb6 {[%clk 0:00:58.5]} 26. Nc5
{[%clk 0:01:48.6]} 26... Rxc5 {[%clk 0:00:58.6]} 27. dxc5 {[%clk 0:01:49.3]}
27... Qxc5 {[%clk 0:00:59.5]} 28. Kb1 {[%clk 0:01:44.2]} 28... d4 {[%clk
0:00:55.2]} 29. Bf5 {[%clk 0:01:35.5]} 29... Qxe5 {[%clk 0:00:46.3]} 30. Bxe6
{[%clk 0:01:34.2]} 30... Rxe6 {[%clk 0:00:34.3]} 31. Qd3 {[%clk 0:01:32.2]}
31... Qe3 {[%clk 0:00:31.1]} 32. Qf5 {[%clk 0:01:25.5]} 32... Qe4+ {[%clk
0:00:28.2]} 33. Qxe4 {[%clk 0:01:25.7]} 33... Rxe4 {[%clk 0:00:29.1]} 34. Rd2
{[%clk 0:01:26.1]} 34... Rh4 {[%clk 0:00:24.2]} 35. Rdf2 {[%clk 0:01:26.2]}
35... f6 {[%clk 0:00:23.4]} 36. Rd1 {[%clk 0:01:23.8]} 36... Kf7 {[%clk
0:00:17.5]} 37. g3 {[%clk 0:01:24.2]} 37... Re4 {[%clk 0:00:17]} 38. Rc2 {[%clk
0:01:19.2]} 38... f5 {[%clk 0:00:15.7]} 39. Rc7+ {[%clk 0:01:17.9]} 39... Re7
{[%clk 0:00:15.8]} 40. Rxe7+ {[%clk 0:01:13.8]} 40... Kxe7 {[%clk 0:00:16.7]}
41. Rc1 {[%clk 0:01:03.1]} 41... Be5 {[%clk 0:00:10.7]} 42. Rc6 {[%clk
0:01:00.8]} 42... Bd6 {[%clk 0:00:08.4]} 43. Kc2 {[%clk 0:00:59.8]} 43... g4
{[%clk 0:00:08.8]} 44. Kd3 {[%clk 0:00:59]} 44... f4 {[%clk 0:00:08.9]} 45. gxf4
{[%clk 0:00:58.1]} 45... g3 {[%clk 0:00:09.6]} 46. Rc2 {[%clk 0:00:57.4]} 46...
Bxf4 {[%clk 0:00:06.1]} 47. Kxd4 {[%clk 0:00:57.7]} 47... Kf6 {[%clk 0:00:06.8]}
48. Ke4 {[%clk 0:00:57.8]} 48... Kg5 {[%clk 0:00:04.9]} 49. Kf3 {[%clk 0:00:58]}
49... Be5 {[%clk 0:00:02.3]} 50. Rc5 {[%clk 0:00:58]} 50... Kf5 {[%clk
0:00:01.7]} 51. b3 {[%clk 0:00:56.4]} 51... Ke6 {[%clk 0:00:01.7]} 52. Rc6+
{[%clk 0:00:56.4]} 52... Bd6 {[%clk 0:00:01.7]} 53. Rxa6 {[%clk 0:00:56.3]}
53... Kd5 {[%clk 0:00:02.4]} 54. a4 {[%clk 0:00:56.6]} 54... bxa4 {[%clk
0:00:02.6]} 55. bxa4 {[%clk 0:00:57.5]} 1-0

[Event "*** Titled Tuesday Blitz"]
[Site "Chess.com"]
[Date "2021.03.30"]
[Round "10"]
[White "aunqa"]
[Black "WisdomGame"]
[Result "0-1"]
[WhiteElo "2312"]
[BlackElo "2078"]
[TimeControl "180+1"]
[EndTime "11:58:00 PDT"]
[Termination "WisdomGame won by resignation"]

1. e4 {[%clk 0:03:00.9]} 1... c5 {[%clk 0:02:58.9]} 2. Nf3 {[%clk 0:03:00.4]}
2... Nc6 {[%clk 0:02:58.6]} 3. d4 {[%clk 0:03:00.3]} 3... cxd4 {[%clk
0:02:58.2]} 4. Nxd4 {[%clk 0:03:01]} 4... Nf6 {[%clk 0:02:58.6]} 5. Nc3 {[%clk
0:03:00.5]} 5... e5 {[%clk 0:02:58.5]} 6. Ndb5 {[%clk 0:03:00.3]} 6... d6 {[%clk
0:02:58.2]} 7. Bg5 {[%clk 0:03:00.4]} 7... a6 {[%clk 0:02:58.3]} 8. Na3 {[%clk
0:03:00.5]} 8... b5 {[%clk 0:02:58.1]} 9. Nd5 {[%clk 0:03:00.2]} 9... Be7 {[%clk
0:02:57.4]} 10. Bxf6 {[%clk 0:03:00.3]} 10... gxf6 {[%clk 0:02:57.5]} 11. Bd3
{[%clk 0:02:56.9]} 11... Be6 {[%clk 0:02:54.5]} 12. c3 {[%clk 0:02:53.8]} 12...
f5 {[%clk 0:02:53.7]} 13. Nc2 {[%clk 0:02:50.3]} 13... f4 {[%clk 0:02:53.8]} 14.
a4 {[%clk 0:02:44.2]} 14... b4 {[%clk 0:02:50.3]} 15. cxb4 {[%clk 0:02:37.7]}
15... Rg8 {[%clk 0:02:48.8]} 16. Kf1 {[%clk 0:02:27.7]} 16... Qb8 {[%clk
0:02:05.9]} 17. b5 {[%clk 0:02:21.6]} 17... Bxd5 {[%clk 0:01:51.7]} 18. exd5
{[%clk 0:02:21.1]} 18... Nd8 {[%clk 0:01:48.4]} 19. Bxh7 {[%clk 0:02:05.8]}
19... Rg7 {[%clk 0:01:42.7]} 20. Bd3 {[%clk 0:02:05.7]} 20... Qb7 {[%clk
0:01:40.4]} 21. Nb4 {[%clk 0:02:00.3]} 21... axb5 {[%clk 0:01:28.1]} 22. Bxb5+
{[%clk 0:01:55.1]} 22... Kf8 {[%clk 0:01:27.7]} 23. h4 {[%clk 0:01:43.8]} 23...
f3 {[%clk 0:01:19.4]} 24. g3 {[%clk 0:01:23.3]} 24... e4 {[%clk 0:01:18.2]} 25.
Rc1 {[%clk 0:01:13.1]} 25... Bf6 {[%clk 0:01:15.8]} 26. Qd2 {[%clk 0:01:08.6]}
26... Rc8 {[%clk 0:01:10.5]} 27. Re1 {[%clk 0:01:00.7]} 27... Rc5 {[%clk
0:00:24.6]} 28. Rxe4 {[%clk 0:00:49.3]} 28... Be5 {[%clk 0:00:24.4]} 29. h5
{[%clk 0:00:26.1]} 29... Rh7 {[%clk 0:00:23.7]} 30. h6 {[%clk 0:00:24]} 30... f5
{[%clk 0:00:23.4]} 31. Re1 {[%clk 0:00:18.4]} 31... Nf7 {[%clk 0:00:23.4]} 32.
Qd3 {[%clk 0:00:15.9]} 32... Qc8 {[%clk 0:00:20.5]} 33. Nc6 {[%clk 0:00:13.8]}
33... Ng5 {[%clk 0:00:13.1]} 34. Nxe5 {[%clk 0:00:13.1]} 34... dxe5 {[%clk
0:00:14]} 35. Rxe5 {[%clk 0:00:11.8]} 35... Rc1+ {[%clk 0:00:13.8]} 36. Re1
{[%clk 0:00:11.9]} 36... Rxe1+ {[%clk 0:00:12.6]} 37. Kxe1 {[%clk 0:00:12]}
37... Qc1+ {[%clk 0:00:12.9]} 38. Qd1 {[%clk 0:00:12.2]} 38... Re7+ {[%clk
0:00:13.2]} 0-1

[Event "*** Titled Tuesday Blitz"]
[Site "Chess.com"]
[Date "2021.03.30"]
[Round "10"]
[White "KacperPolOK"]
[Black "northridgehawk"]
[Result "1-0"]
[WhiteElo "2441"]
[BlackElo "2301"]
[TimeControl "180+1"]
[EndTime "11:58:00 PDT"]
[Termination "KacperPolOK won by resignation"]

1. e4 {[%clk 0:03:00.9]} 1... e5 {[%clk 0:02:59.6]} 2. Nf3 {[%clk 0:02:58.6]}
2... Nc6 {[%clk 0:03:00]} 3. Bc4 {[%clk 0:02:58.5]} 3... Nf6 {[%clk 0:03:00.6]}
4. O-O {[%clk 0:02:58.1]} 4... Bc5 {[%clk 0:03:00.8]} 5. d4 {[%clk 0:02:58.1]}
5... exd4 {[%clk 0:03:01.7]} 6. e5 {[%clk 0:02:58.5]} 6... d5 {[%clk 0:02:52.4]}
7. exf6 {[%clk 0:02:58.6]} 7... dxc4 {[%clk 0:02:52.9]} 8. fxg7 {[%clk
0:02:59.2]} 8... Rg8 {[%clk 0:02:52.7]} 9. Bg5 {[%clk 0:02:58.7]} 9... Be7
{[%clk 0:02:52.7]} 10. Bxe7 {[%clk 0:02:58.2]} 10... Kxe7 {[%clk 0:02:53.6]} 11.
Nbd2 {[%clk 0:02:53.6]} 11... Kf6 {[%clk 0:02:53.4]} 12. Nxc4 {[%clk 0:02:41.5]}
12... Kxg7 {[%clk 0:02:52.5]} 13. Nfe5 {[%clk 0:02:36.3]} 13... Nxe5 {[%clk
0:02:47.1]} 14. Nxe5 {[%clk 0:02:36.4]} 14... Be6 {[%clk 0:02:45.5]} 15. Qh5
{[%clk 0:02:27.6]} 15... Qd5 {[%clk 0:02:43.5]} 16. Qg5+ {[%clk 0:02:17.1]}
16... Kh8 {[%clk 0:02:42.6]} 17. Qf6+ {[%clk 0:02:14.1]} 17... Rg7 {[%clk
0:02:41.4]} 18. f3 {[%clk 0:02:02.4]} 18... Kg8 {[%clk 0:02:39.1]} 19. Rae1
{[%clk 0:02:01.3]} 19... Qd8 {[%clk 0:02:38]} 20. Qxd8+ {[%clk 0:01:56.5]} 20...
Rxd8 {[%clk 0:02:38.9]} 21. Nd3 {[%clk 0:01:54.6]} 21... b6 {[%clk 0:02:38.2]}
22. Kf2 {[%clk 0:01:54.6]} 22... c5 {[%clk 0:02:38.2]} 23. g4 {[%clk 0:01:49.6]}
23... Bc4 {[%clk 0:02:32.5]} 24. b3 {[%clk 0:01:48.2]} 24... Be6 {[%clk
0:02:32.3]} 25. Nf4 {[%clk 0:01:47.8]} 25... Rd6 {[%clk 0:02:30]} 26. Nxe6
{[%clk 0:01:47.6]} 26... fxe6 {[%clk 0:02:28.5]} 27. Ke2 {[%clk 0:01:45.6]}
27... Kf7 {[%clk 0:02:27.9]} 28. Kd3 {[%clk 0:01:46]} 28... Ke7 {[%clk
0:02:25.6]} 29. h3 {[%clk 0:01:45.8]} 29... Rg6 {[%clk 0:02:24.4]} 30. f4 {[%clk
0:01:46.1]} 30... Rh6 {[%clk 0:02:24.1]} 31. Rf3 {[%clk 0:01:45.4]} 31... Kd7
{[%clk 0:02:23.6]} 32. Re5 {[%clk 0:01:45.1]} 32... a6 {[%clk 0:02:21.6]} 33. a4
{[%clk 0:01:44.7]} 33... Kc6 {[%clk 0:02:21]} 34. Ke4 {[%clk 0:01:41.1]} 34...
b5 {[%clk 0:02:21.2]} 35. axb5+ {[%clk 0:01:40.4]} 35... axb5 {[%clk 0:02:22.1]}
36. f5 {[%clk 0:01:39]} 36... exf5+ {[%clk 0:02:22.1]} 37. Rfxf5 {[%clk
0:01:39.2]} 37... Rxh3 {[%clk 0:02:19.2]} 38. Rxc5+ {[%clk 0:01:39.1]} 38... Kd7
{[%clk 0:02:18.5]} 39. Rxb5 {[%clk 0:01:35.1]} 39... Re3+ {[%clk 0:02:14.9]} 40.
Kf4 {[%clk 0:01:35.4]} 40... Re2 {[%clk 0:02:13.9]} 41. Rbc5 {[%clk 0:01:31.5]}
41... h6 {[%clk 0:02:13.2]} 42. b4 {[%clk 0:01:30.8]} 42... Rf2+ {[%clk
0:02:12.1]} 43. Ke4 {[%clk 0:01:26]} 43... Rg2 {[%clk 0:02:12]} 44. g5 {[%clk
0:01:24.1]} 44... hxg5 {[%clk 0:02:07.9]} 45. Rxg5 {[%clk 0:01:24.3]} 45... Re2+
{[%clk 0:02:06.8]} 46. Kd3 {[%clk 0:01:20.5]} 46... Re3+ {[%clk 0:02:06.8]} 47.
Kc4 {[%clk 0:01:20.8]} 47... Rc3+ {[%clk 0:02:06.6]} 48. Kb5 {[%clk 0:01:21.1]}
48... Re3 {[%clk 0:01:49.6]} 49. Rc4 {[%clk 0:00:59]} 49... Ree6 {[%clk
0:01:47.1]} 50. Rg7+ {[%clk 0:00:53]} 50... Kd8 {[%clk 0:01:46.3]} 51. Rg4
{[%clk 0:00:53.5]} 51... d3 {[%clk 0:01:37]} 52. cxd3 {[%clk 0:00:49]} 52...
Rxd3 {[%clk 0:01:37.9]} 53. Rg8+ {[%clk 0:00:41.2]} 53... Kd7 {[%clk 0:01:37.4]}
54. Rgc8 {[%clk 0:00:41.4]} 54... Rd5+ {[%clk 0:01:32.8]} 55. R8c5 {[%clk
0:00:40.8]} 55... Rxc5+ {[%clk 0:01:28.2]} 56. Rxc5 {[%clk 0:00:40.2]} 56... Kd8
{[%clk 0:01:27.9]} 57. Ka5 {[%clk 0:00:38.3]} 57... Re1 {[%clk 0:01:23.5]} 58.
b5 {[%clk 0:00:38]} 58... Rb1 {[%clk 0:01:22.3]} 59. Ka6 {[%clk 0:00:37.7]}
59... Ra1+ {[%clk 0:01:21.7]} 60. Kb7 {[%clk 0:00:37.6]} 60... Rb1 {[%clk
0:01:20.4]} 61. b6 {[%clk 0:00:38]} 61... Rb2 {[%clk 0:01:20.5]} 62. Ka7 {[%clk
0:00:37.4]} 62... Ra2+ {[%clk 0:01:20.9]} 63. Kb8 {[%clk 0:00:37.9]} 63... Rb2
{[%clk 0:01:21.5]} 64. b7 {[%clk 0:00:38.3]} 64... Ra2 {[%clk 0:01:22.1]} 65.
Rc4 {[%clk 0:00:36.5]} 65... Ra5 {[%clk 0:01:14.4]} 66. Rd4+ {[%clk 0:00:35.9]}
66... Ke7 {[%clk 0:01:14.6]} 67. Kc7 {[%clk 0:00:36.2]} 67... Rc5+ {[%clk
0:01:14.3]} 68. Kb6 {[%clk 0:00:36.4]} 68... Rc1 {[%clk 0:01:14.3]} 69. b8=Q
{[%clk 0:00:36.7]} 69... Rb1+ {[%clk 0:01:14.5]} 70. Ka7 {[%clk 0:00:37.1]}
70... Ra1+ {[%clk 0:01:14.7]} 71. Kb7 {[%clk 0:00:37.6]} 71... Rb1+ {[%clk
0:01:15.3]} 72. Kc8 {[%clk 0:00:38.1]} 72... Rc1+ {[%clk 0:01:15.3]} 73. Qc7+
{[%clk 0:00:38.7]} 73... Rxc7+ {[%clk 0:01:15.6]} 74. Kxc7 {[%clk 0:00:39.6]}
1-0

[Event "*** Titled Tuesday Blitz"]
[Site "Chess.com"]
[Date "2021.03.30"]
[Round "10"]
[White "Smile2005"]
[Black "DanielTitichoca"]
[Result "1-0"]
[WhiteElo "2440"]
[BlackElo "2291"]
[TimeControl "180+1"]
[EndTime "11:58:00 PDT"]
[Termination "Smile2005 won by checkmate"]

1. Nf3 {[%clk 0:02:55]} 1... d5 {[%clk 0:02:58.2]} 2. b3 {[%clk 0:02:55.1]} 2...
Nf6 {[%clk 0:02:58.7]} 3. Bb2 {[%clk 0:02:55.4]} 3... e6 {[%clk 0:02:55.2]} 4.
e3 {[%clk 0:02:55.6]} 4... Be7 {[%clk 0:02:55.9]} 5. Ne5 {[%clk 0:02:55.6]} 5...
O-O {[%clk 0:02:56]} 6. Be2 {[%clk 0:02:55.5]} 6... Nfd7 {[%clk 0:02:55.5]} 7.
f4 {[%clk 0:02:55.1]} 7... Nxe5 {[%clk 0:02:50.5]} 8. Bxe5 {[%clk 0:02:54]} 8...
c5 {[%clk 0:02:44]} 9. O-O {[%clk 0:02:50.3]} 9... Nc6 {[%clk 0:02:44.4]} 10.
Bb2 {[%clk 0:02:47.7]} 10... Bf6 {[%clk 0:02:43.8]} 11. d4 {[%clk 0:02:46.5]}
11... b6 {[%clk 0:02:33.8]} 12. g4 {[%clk 0:02:46.2]} 12... g6 {[%clk
0:02:27.7]} 13. c3 {[%clk 0:02:10.4]} 13... Bb7 {[%clk 0:02:22.9]} 14. Nd2
{[%clk 0:02:10.2]} 14... Rc8 {[%clk 0:02:19.7]} 15. Nf3 {[%clk 0:02:09.8]} 15...
Be7 {[%clk 0:02:12.5]} 16. c4 {[%clk 0:02:05.6]} 16... Bf6 {[%clk 0:02:09.7]}
17. Ne5 {[%clk 0:02:02.9]} 17... Ne7 {[%clk 0:02:06.5]} 18. Bd3 {[%clk
0:01:42.8]} 18... Bg7 {[%clk 0:02:01]} 19. f5 {[%clk 0:01:42.9]} 19... exf5
{[%clk 0:01:46.2]} 20. gxf5 {[%clk 0:01:42.2]} 20... Nxf5 {[%clk 0:01:45.8]} 21.
Bxf5 {[%clk 0:01:41.2]} 21... gxf5 {[%clk 0:01:45.4]} 22. Rxf5 {[%clk
0:01:39.1]} 22... dxc4 {[%clk 0:01:44.5]} 23. bxc4 {[%clk 0:01:32.6]} 23... cxd4
{[%clk 0:01:32.3]} 24. Bxd4 {[%clk 0:01:32.4]} 24... Qh4 {[%clk 0:01:10.9]} 25.
Rh5 {[%clk 0:01:17.3]} 25... Qe4 {[%clk 0:01:03.6]} 26. Qg4 {[%clk 0:00:41.3]}
26... f5 {[%clk 0:00:22.9]} 27. Qxe4 {[%clk 0:00:38.3]} 27... Bxe4 {[%clk
0:00:21.2]} 28. Kf2 {[%clk 0:00:38]} 28... f4 {[%clk 0:00:16.5]} 29. Rg1 {[%clk
0:00:35]} 29... fxe3+ {[%clk 0:00:11.3]} 30. Kxe3 {[%clk 0:00:32.1]} 30... Bg6
{[%clk 0:00:06.3]} 31. Nxg6 {[%clk 0:00:28.6]} 31... Bxd4+ {[%clk 0:00:06.5]}
32. Kxd4 {[%clk 0:00:27.7]} 32... hxg6 {[%clk 0:00:07.1]} 33. Rxg6+ {[%clk
0:00:25.1]} 33... Kf7 {[%clk 0:00:07.7]} 34. Rgh6 {[%clk 0:00:24]} 34... Rfd8+
{[%clk 0:00:07.7]} 35. Rd5 {[%clk 0:00:21.7]} 35... Rg8 {[%clk 0:00:06.5]} 36.
Rd7+ {[%clk 0:00:18.3]} 36... Ke8 {[%clk 0:00:06.8]} 37. Rxa7 {[%clk 0:00:17.2]}
37... Rg4+ {[%clk 0:00:07.2]} 38. Kd3 {[%clk 0:00:14]} 38... Rgxc4 {[%clk
0:00:05.8]} 39. Rh8# {[%clk 0:00:12.1]} 1-0

[Event "*** Titled Tuesday Blitz"]
[Site "Chess.com"]
[Date "2021.03.30"]
[Round "10"]
[White "Sjakkerntobi"]
[Black "Escanor89"]
[Result "0-1"]
[WhiteElo "2409"]
[BlackElo "2571"]
[TimeControl "180+1"]
[EndTime "11:58:03 PDT"]
[Termination "Escanor89 won by resignation"]

1. e4 {[%clk 0:03:00.9]} 1... c5 {[%clk 0:02:59.8]} 2. Nf3 {[%clk 0:03:00]} 2...
d6 {[%clk 0:02:59.9]} 3. d4 {[%clk 0:03:00.1]} 3... cxd4 {[%clk 0:03:00]} 4.
Qxd4 {[%clk 0:03:01]} 4... Nc6 {[%clk 0:02:58.4]} 5. Bb5 {[%clk 0:03:00.9]} 5...
Bd7 {[%clk 0:02:58.5]} 6. Bxc6 {[%clk 0:03:00.9]} 6... Bxc6 {[%clk 0:02:58.6]}
7. Nc3 {[%clk 0:03:01.6]} 7... Nf6 {[%clk 0:02:58.4]} 8. Bg5 {[%clk 0:03:02.1]}
8... e6 {[%clk 0:02:58.6]} 9. O-O-O {[%clk 0:03:02.7]} 9... Be7 {[%clk
0:02:58.5]} 10. Qd3 {[%clk 0:03:03.4]} 10... Qa5 {[%clk 0:02:56]} 11. h4 {[%clk
0:03:02.7]} 11... O-O {[%clk 0:02:48.4]} 12. Nd4 {[%clk 0:03:02.3]} 12... Rfc8
{[%clk 0:02:37.2]} 13. f4 {[%clk 0:02:57.7]} 13... Be8 {[%clk 0:02:33]} 14. Nb3
{[%clk 0:02:43.6]} 14... Qc7 {[%clk 0:02:28.5]} 15. f5 {[%clk 0:02:12.1]} 15...
Qc4 {[%clk 0:02:04]} 16. Qf3 {[%clk 0:02:00.4]} 16... b5 {[%clk 0:01:55]} 17.
Rd4 {[%clk 0:01:34.4]} 17... Qc7 {[%clk 0:01:48]} 18. Rd2 {[%clk 0:01:29.5]}
18... b4 {[%clk 0:01:32.7]} 19. Ne2 {[%clk 0:01:28]} 19... a5 {[%clk 0:01:27.7]}
20. Nbd4 {[%clk 0:01:17.4]} 20... e5 {[%clk 0:01:19.4]} 21. Nb3 {[%clk
0:01:13.4]} 21... a4 {[%clk 0:01:19]} 22. Na1 {[%clk 0:01:13.7]} 22... Qc4
{[%clk 0:01:08.2]} 23. Kb1 {[%clk 0:00:48.4]} 23... Nxe4 {[%clk 0:01:03.9]} 24.
Rd3 {[%clk 0:00:48.4]} 24... Bxg5 {[%clk 0:00:45.9]} 25. hxg5 {[%clk 0:00:49.3]}
25... Nxg5 {[%clk 0:00:45.7]} 26. Qe3 {[%clk 0:00:40.6]} 26... h6 {[%clk
0:00:42.6]} 27. f6 {[%clk 0:00:40.6]} 27... Qc5 {[%clk 0:00:30.8]} 28. Qg3
{[%clk 0:00:36.1]} 28... Bb5 {[%clk 0:00:30.2]} 29. Rd2 {[%clk 0:00:21.3]} 29...
b3 {[%clk 0:00:24.8]} 30. fxg7 {[%clk 0:00:15.2]} 30... bxa2+ {[%clk 0:00:23.3]}
31. Kc1 {[%clk 0:00:15.5]} 31... Kxg7 {[%clk 0:00:22.5]} 32. Nc3 {[%clk
0:00:13.2]} 32... Qb4 {[%clk 0:00:19]} 33. Rh4 {[%clk 0:00:11.1]} 33... Rc4
{[%clk 0:00:17.6]} 34. Rxc4 {[%clk 0:00:09]} 34... Qxc4 {[%clk 0:00:18]} 35.
Rxd6 {[%clk 0:00:07.5]} 35... Qf4+ {[%clk 0:00:18]} 36. Qxf4 {[%clk 0:00:07.7]}
36... exf4 {[%clk 0:00:18.5]} 37. Nxb5 {[%clk 0:00:08.4]} 37... Re8 {[%clk
0:00:17.7]} 38. Rd2 {[%clk 0:00:04.9]} 38... Re1+ {[%clk 0:00:17.3]} 39. Rd1
{[%clk 0:00:05.5]} 39... Re2 {[%clk 0:00:17.3]} 40. Nc3 {[%clk 0:00:05.8]} 40...
Rxg2 {[%clk 0:00:17]} 41. Nxa2 {[%clk 0:00:06.5]} 41... f3 {[%clk 0:00:17.1]}
42. Nc3 {[%clk 0:00:07.2]} 42... f2 {[%clk 0:00:17.2]} 43. Ne4 {[%clk
0:00:06.2]} 43... Nxe4 {[%clk 0:00:16.9]} 0-1